{"text_format":"3","workbook":"xlsx","n_sheets":2,"sheets":["COMO UTILIZAR ESTE LIVRO","LIVRO DE NOTAS"],"not_rendered":{"defined_names":5},"read":"whole","date_system":"1900"}

{"sheet":"COMO UTILIZAR ESTE LIVRO","index":0,"n_rows":10,"n_cols":2,"rows_kept":10}
[null,"INSTRUÇÕES"]
[null,"Utilize a folha de cálculo LIVRO DE NOTAS para calcular as notas – cada tarefa vale um determinado número de pontos. "]
[null,"Instruções: certifique-se de que guarda cópias das notas."]
[null,"1. Preencha o nome da escola, as informações da turma, os nomes dos estudantes e os números dos estudantes (opcional).   "]
[null,"2. Ajuste a tabela Notas e GPA para corresponder ao seu sistema de classificação."]
[null,"3. Preencha os nomes dos testes ou tarefas a partir da célula G7, assim como a percentagem do valor de cada (por ex.: \"Final\" e \"50%\"). "]
[null,"4. Preencha as pontuações de cada estudante em cada tarefa ou teste. As colunas \"Pontuação\", \"Classificação por Extenso\" e \"GPA\" são calculadas automaticamente, mas pode substituir os conteúdos, se necessário. O cálculo das notas, a nota média e a nota final estão incompletos até colocar todas as pontuações."]
[null,"Utilize o comando \"Área de Impressão\" no menu Esquema de Página se quiser alterar a área de impressão."]
[null,"Os valores Pontuação, Classificação por Extenso e GPA não são válidos até 100% dos testes e tarefas estarem concluídos. "]
[null,"Introduza cada tarefa ou teste e a respetiva percentagem da nota total nas células G7 a W8."]

{"sheet":"LIVRO DE NOTAS","index":1,"n_rows":20,"n_cols":23,"rows_kept":20,"merged":[[5,1,5,5],[6,1,6,3],[6,4,6,5],[7,1,8,3],[7,4,7,5],[8,4,8,5],[15,1,15,5],[16,1,16,2],[17,1,17,2],[18,1,18,2],[19,1,19,2]]}
[null,"O NOME DA ESCOLA"]
[]
[{"$nulls":6},"Pontuação",{"v":0,"d":"0%"},{"v":0.6,"d":"60%"},{"v":0.63,"d":"63%"},{"v":0.67,"d":"67%"},{"v":0.7,"d":"70%"},{"v":0.73,"d":"73%"},{"v":0.77,"d":"77%"},{"v":0.8,"d":"80%"},{"v":0.83,"d":"83%"},{"v":0.87,"d":"87%"},{"v":0.9,"d":"90%"},{"v":0.93,"d":"93%"},{"v":0.97,"d":"97%"}]
[{"$nulls":6},"Classificação por Extenso","F","D-","D","D+","C-","C","C+","B-","B","B+","A-","A","A+"]
[{"$nulls":6},"GPA",0,0.67,1,1.33,1.67,2,2.33,2.67,3,3.33,3.67,4,4]
[null,"Nome do Professor"]
[null,"Turma/Projeto",null,null,"Nome do Teste ou Tarefa"]
[null,"Ano/Semestre/Trimestre",null,null,"Percentagem (o total deve ser 100%)"]
[{"$nulls":4},{"$f":"\"Percentagem total: \"&SUM(G8:W8)*100&\"%\"","v":"Percentagem total: 0%"}]
[null,"Nome do Estudante","N.º do Estudante","Pontuação","Classificação por Extenso","GPA","Coluna6","Coluna7","Coluna8","Coluna9","Coluna10","Coluna11","Coluna12","Coluna13","Coluna14","Coluna15","Coluna16","Coluna17","Coluna18","Coluna19","Coluna20","Coluna21","Coluna22"]
[{"$nulls":3},{"$f":"(IF(SUM(Notas[[#This Row],[Coluna6]:[Coluna22]]),ROUND(SUMPRODUCT($G$8:$W$8,Notas[[#This Row],[Coluna6]:[Coluna22]]),2),\"\"))","v":""},{"$f":"IF(Notas[[#This Row],[Pontuação]]<>\"\",HLOOKUP(Notas[[#This Row],[Pontuação]],TabelaDeNotas,2),\"\")","v":""},{"$f":"IF(Notas[[#This Row],[Pontuação]]<>\"\",HLOOKUP(Notas[[#This Row],[Pontuação]],TabelaDeNotas,3),\"\")","v":""}]
[{"$nulls":3},{"$f":"(IF(SUM(Notas[[#This Row],[Coluna6]:[Coluna22]]),ROUND(SUMPRODUCT($G$8:$W$8,Notas[[#This Row],[Coluna6]:[Coluna22]]),2),\"\"))","v":""},{"$f":"IF(Notas[[#This Row],[Pontuação]]<>\"\",HLOOKUP(Notas[[#This Row],[Pontuação]],TabelaDeNotas,2),\"\")","v":""},{"$f":"IF(Notas[[#This Row],[Pontuação]]<>\"\",HLOOKUP(Notas[[#This Row],[Pontuação]],TabelaDeNotas,3),\"\")","v":""}]
[{"$nulls":3},{"$f":"(IF(SUM(Notas[[#This Row],[Coluna6]:[Coluna22]]),ROUND(SUMPRODUCT($G$8:$W$8,Notas[[#This Row],[Coluna6]:[Coluna22]]),2),\"\"))","v":""},{"$f":"IF(Notas[[#This Row],[Pontuação]]<>\"\",HLOOKUP(Notas[[#This Row],[Pontuação]],TabelaDeNotas,2),\"\")","v":""},{"$f":"IF(Notas[[#This Row],[Pontuação]]<>\"\",HLOOKUP(Notas[[#This Row],[Pontuação]],TabelaDeNotas,3),\"\")","v":""}]
[{"$nulls":3},{"$f":"(IF(SUM(Notas[[#This Row],[Coluna6]:[Coluna22]]),ROUND(SUMPRODUCT($G$8:$W$8,Notas[[#This Row],[Coluna6]:[Coluna22]]),2),\"\"))","v":""},{"$f":"IF(Notas[[#This Row],[Pontuação]]<>\"\",HLOOKUP(Notas[[#This Row],[Pontuação]],TabelaDeNotas,2),\"\")","v":""},{"$f":"IF(Notas[[#This Row],[Pontuação]]<>\"\",HLOOKUP(Notas[[#This Row],[Pontuação]],TabelaDeNotas,3),\"\")","v":""}]
[{"$nulls":3},{"$f":"(IF(SUM(Notas[[#This Row],[Coluna6]:[Coluna22]]),ROUND(SUMPRODUCT($G$8:$W$8,Notas[[#This Row],[Coluna6]:[Coluna22]]),2),\"\"))","v":""},{"$f":"IF(Notas[[#This Row],[Pontuação]]<>\"\",HLOOKUP(Notas[[#This Row],[Pontuação]],TabelaDeNotas,2),\"\")","v":""},{"$f":"IF(Notas[[#This Row],[Pontuação]]<>\"\",HLOOKUP(Notas[[#This Row],[Pontuação]],TabelaDeNotas,3),\"\")","v":""}]
[]
[null,"Resumo da Turma",null,"Pontuação","Classificação por Extenso","GPA","","","","","","","","","","",""]
[null," Média",null,{"$f":"IFERROR(AVERAGE(Notas[[#All],[Pontuação]]),0)","v":{"v":0,"d":"0.0%"}},{"$f":"IFERROR(HLOOKUP(D18,TabelaDeNotas,2),\"\")","v":"F"},{"$f":"IFERROR(AVERAGE(Notas[[#All],[GPA]]),0)","v":0},"","","","","","","","","","","","","","","","",""]
[null," Pontuação Mais Alta",null,{"$f":"IFERROR(MAX(Notas[[#All],[Pontuação]]),0)","v":{"v":0,"d":"0.0%"}},{"$f":"IFERROR(HLOOKUP(D19,TabelaDeNotas,2),\"\")","v":"F"},{"$f":"IFERROR(MAX(Notas[[#All],[GPA]]),0)","v":0},"","","","","","","","","","","","","","","","",""]
[null," Pontuação Mais Baixa",null,{"$f":"IFERROR(MIN(Notas[[#All],[Pontuação]]),0)","v":{"v":0,"d":"0.0%"}},{"$f":"IFERROR(HLOOKUP(D20,TabelaDeNotas,2),\"\")","v":"F"},{"$f":"IFERROR(MIN(Notas[[#All],[GPA]]),0)","v":0},"","","","","","","","","","","","","","","","",""]